bitfinex/quotes_ETHUSD_20230405
["timestamp","ask_amount","ask_price","bid_price","bid_amount"]
[1680658022399,6.00452825,1913.2,1912.5,1.8373]
[1680658022400,2.63428255,1913.1,1912.5,1.8393]
[1680658022599,2.63428255,1913.1,1912.7,1.0]
[1680658022830,2.63428255,1913.1,1912.8,0.78417]
[1680658023814,0.48452825,1913.2,1912.8,1.82975]
[1680658024003,0.002,1913.3,1912.8,1.82975]
[1680658024215,8.2593,1913.5,1912.8,1.82975]
[1680658024410,2.63428255,1913.4,1912.8,1.82975]
[1680658025144,6.0683,1913.5,1912.8,1.82975]
[1680658025342,0.60683,1913.4,1912.8,1.82975]
[1680658025934,0.60683,1913.4,1912.8,1.83575]
[1680658026443,0.002,1913.5,1913.0,6.62809]
[1680658026644,11.583,1913.7,1913.1,0.5]
[1680658026806,11.583,1913.7,1913.2,1.82931]
[1680658027012,1.1609,1913.7,1913.4,0.988]
[1680658027317,9.968,1913.9,1913.5,0.2613]
[1680658027515,12.60228255,1913.9,1913.5,0.2613]
[1680658027741,3.0,1913.8,1913.4,1.2493]
[1680658028045,4.56622826,1913.8,1913.4,1.2493]
[1680658028350,4.56622826,1913.8,1913.4,0.988]
[1680658028351,2.191,1913.5,1913.4,0.988]
[1680658028549,4.82528255,1913.5,1913.1,0.26135]
[1680658028712,2.183,1913.3,1913.1,0.26134]
[1680658028912,0.48252825,1913.4,1913.1,0.78405]
[1680658029222,0.48252825,1913.4,1913.1,0.26134]
[1680658029625,4.82728255,1913.5,1913.0,0.26135]
[1680658029626,0.002,1913.5,1913.0,0.26135]
[1680658029838,0.47029,1913.7,1913.2,0.58]
[1680658030148,2.86943255,1913.7,1913.2,0.58]
[1680658030337,2.63428255,1913.7,1913.2,0.84134]
[1680658030671,0.002,1913.8,1913.7,5.514]
[1680658030814,0.11000001,1914.2,1913.7,6.3686997]
[1680658031019,0.11000001,1914.2,1913.7,3.12168916]
[1680658031240,0.11000001,1914.2,1914.0,0.5]
[1680658031448,0.11000001,1914.2,1914.1,0.26121]
[1680658031747,0.11000001,1914.2,1914.1,0.78364]
[1680658033049,0.11000001,1914.2,1914.1,0.26121]
[1680658033250,0.11000001,1914.2,1913.9,0.02352676]
[1680658033251,0.11000001,1914.2,1913.9,0.26124]
[1680658033413,1.26763939,1914.3,1914.0,0.549]
[1680658033813,1.26763939,1914.3,1914.0,0.81023]
[1680658034052,8.9808,1914.5,1914.0,1.33269]
[1680658034236,4.46308,1914.5,1914.0,0.78369]
[1680658034442,3.11800001,1914.6,1914.0,0.78369]
[1680658034643,3.0,1914.5,1913.9,0.52249]
[1680658034847,0.34703001,1914.6,1914.0,0.26123]
[1680658035045,0.34703001,1914.6,1913.9,0.26123]
[1680658035046,2.189,1914.5,1913.9,0.26123]
[1680658035247,2.189,1914.5,1913.9,0.78372]
[1680658036562,0.11000001,1914.6,1913.9,4.15093169]
[1680658036864,0.11000001,1914.6,1914.2,0.563]
[1680658037064,0.11000001,1914.6,1914.3,0.26118]
[1680658038065,0.11000001,1914.6,1914.3,3.22680579]
[1680658038235,0.11000001,1914.6,1914.5,0.76116]
[1680658038635,0.11000001,1914.6,1914.5,1.28348]
[1680658038862,0.11000001,1914.6,1914.5,2.34965001]
[1680658039050,0.11000001,1914.6,1914.5,2.89065001]
[1680658039367,0.11000001,1914.6,1914.5,4.98304622]
[1680658039565,0.11000001,1914.6,1914.5,7.42982125]
[1680658039751,0.11000001,1914.6,1914.5,7.43182125]
[1680658040270,0.11000001,1914.6,1914.5,13.44582125]
[1680658040849,1e-08,1914.6,1914.5,13.44582125]
[1680658041056,1e-08,1914.6,1914.5,16.67582125]
[1680658041334,2e-08,1914.8,1914.5,16.67582125]
[1680658041555,2e-08,1914.8,1914.7,5.514]
[1680658041757,2e-08,1914.8,1914.7,15.24753981]
[1680658042030,2e-08,1914.8,1914.7,15.73931484]
[1680658042236,2e-08,1914.8,1914.7,16.32731484]
[1680658042430,2e-08,1914.8,1914.7,10.09058473]
[1680658042636,2e-08,1914.8,1914.7,8.29109503]
[1680658043044,2e-08,1914.8,1914.7,5.41795]
[1680658043243,2e-08,1914.8,1914.7,0.59]
[1680658043443,2e-08,1914.8,1914.7,0.588]
[1680658043658,2e-08,1914.8,1914.6,0.26113]
[1680658043971,2e-08,1914.8,1914.6,0.26114]
[1680658044330,2e-08,1914.8,1914.6,0.861784]
[1680658044753,2e-08,1914.8,1914.6,0.26114]
[1680658044930,2e-08,1914.8,1914.6,0.78344]
[1680658045933,2e-08,1914.8,1914.6,0.26114]
[1680658046573,0.235,1914.9,1914.5,0.578]
[1680658046772,0.5,1914.7,1914.1,0.52643]
[1680658046935,2.63428255,1914.6,1914.1,0.2672]
[1680658047272,8.85338255,1914.6,1913.9,0.006]
[1680658047571,2.191,1914.3,1913.7,0.26726]
[1680658047874,2.191,1914.1,1913.7,0.006]
[1680658048194,4.82528255,1914.1,1913.7,0.006]
[1680658048370,4.82528255,1914.1,1913.7,0.26127]
[1680658048541,5.3315188,1914.1,1913.6,0.78385]
[1680658048747,5.3335188,1914.1,1913.6,0.78385]
[1680658049171,2.191,1914.0,1913.6,0.78385]
[1680658049547,2.191,1914.0,1913.6,0.26128]
[1680658049746,2.72435188,1914.0,1913.6,0.26128]
[1680658050955,5.35863443,1914.0,1913.6,0.006]
[1680658051157,5.36063443,1914.0,1913.6,0.26128]
[1680658051348,0.53606344,1913.9,1913.5,0.26729]
[1680658051680,5.97913,1913.8,1913.5,0.006]
[1680658051834,5.97913,1913.8,1913.2,0.26134]
[1680658051835,0.5,1913.6,1913.2,0.26134]
[1680658052045,0.5,1913.6,1913.1,0.106]
[1680658052046,2.191,1913.4,1913.1,0.1]
[1680658052399,2.86428255,1913.3,1913.1,0.1]
[1680658052545,0.2352,1913.2,1913.1,0.1]
[1680658052748,2.86948255,1913.2,1913.1,0.1]
[1680658053059,3.96103081,1913.2,1913.1,0.1]
[1680658053254,3.72583081,1913.2,1913.1,0.1]
[1680658056243,9.23983081,1913.2,1913.1,0.1]
[1680658056452,9.24183081,1913.2,1913.1,0.1]
[1680658056686,9.47703081,1913.2,1913.1,0.1]
[1680658057249,9.24183081,1913.2,1913.1,0.1]
[1680658057783,0.86354826,1913.2,1913.1,0.36135]
[1680658057986,0.002,1913.3,1913.1,0.1]
[1680658058188,9.06632825,1913.6,1913.1,0.1]
[1680658058189,3.002,1913.5,1913.1,0.1]
[1680658058384,2.93448255,1913.4,1913.1,0.1]
[1680658058944,5.12548255,1913.4,1913.1,0.1]
[1680658059147,5.12748255,1913.4,1913.1,0.1]
[1680658059984,5.36266255,1913.4,1913.1,0.1]
[1680658060189,2.4932,1913.4,1913.1,0.1]
[1680658060524,2.191,1913.4,1913.1,0.1]
[1680658061276,4.82528255,1913.4,1913.1,0.1]
[1680658061472,5.06047255,1913.4,1913.1,0.1]
[1680658061699,5.06247255,1913.4,1913.1,0.1]
[1680658062207,2.42619,1913.3,1913.1,0.1]
[1680658062408,3.10690155,1913.2,1913.1,0.1]
[1680658062581,6.00151155,1913.2,1913.1,0.1]
[1680658062789,6.00351155,1913.2,1913.1,0.1]
[1680658063201,5.53310155,1913.2,1913.1,0.1]
[1680658063405,5.29790155,1913.2,1913.1,0.1]
[1680658064194,5.29790155,1913.2,1912.5,0.006]
[1680658064195,15.46034155,1913.2,1912.5,0.006]
[1680658064487,15.46034155,1913.2,1911.9,0.1]
[1680658064488,2.42629,1912.6,1912.0,0.006]
[1680658064689,2.63428255,1912.6,1912.0,0.006]
[1680658064889,2.191,1912.5,1912.1,1.56895]
[1680658065098,0.002,1912.8,1912.3,0.26145]
[1680658065299,0.23721,1913.2,1912.3,4.61604194]
[1680658065500,0.23521,1913.2,1912.4,0.72304419]
[1680658065754,3.0,1913.3,1912.7,0.083]
[1680658066012,2.42621,1913.2,1912.7,0.083]
[1680658067107,2.63428255,1913.1,1912.7,0.083]
[1680658067309,1.91006826,1913.0,1912.7,0.34618]
[1680658067494,6.63628255,1912.9,1912.7,0.34618]
[1680658067821,0.70576,1912.8,1912.7,0.26318]
[1680658068134,0.23525,1912.8,1912.7,0.26318]
[1680658068335,0.776534,1912.8,1912.7,0.26318]
[1680658069497,0.23525,1912.8,1912.7,0.26318]
[1680658069695,0.47046,1913.0,1912.7,0.32618]
[1680658069892,0.23524,1913.0,1912.7,0.32618]
[1680658070482,0.7057,1913.0,1912.7,0.32618]
[1680658070685,1.89638,1913.0,1912.7,0.32618]
[1680658071197,35.444,1913.4,1912.7,0.32618]
[1680658071198,0.006,1913.6,1912.8,12.3536904]
[1680658071422,5.7891,1914.2,1913.0,5.514]
[1680658071633,6.256717,1914.2,1913.4,0.78393]
[1680658071836,6.256717,1914.2,1913.5,0.5]
[1680658071837,0.604417,1914.2,1913.5,0.5]
[1680658072054,4.012,1914.5,1913.7,0.26126]
[1680658072224,9.75906,1914.5,1913.7,0.31926]
[1680658072393,10.23115,1914.5,1913.7,0.8478]
[1680658072595,1.258175,1914.4,1913.7,0.8478]
[1680658073235,1.023115,1914.4,1913.7,0.8478]
[1680658074201,1.258175,1914.4,1913.7,0.8478]
[1680658074710,1.023115,1914.4,1913.7,0.8478]
[1680658074933,0.23,1914.3,1913.7,0.8478]
[1680658075135,9.526,1914.5,1913.7,1.914419]
[1680658075136,0.23705,1914.5,1913.7,1.914419]
[1680658075296,0.23504,1914.6,1913.7,1.914419]
[1680658075497,7.65326,1914.6,1913.8,0.1914419]
[1680658075703,7.65526,1914.6,1913.8,0.7199419]
[1680658075912,7.42022,1914.6,1913.9,0.78372]
[1680658076249,7.42022,1914.6,1913.9,0.78972]
[1680658076250,0.765526,1914.5,1913.9,0.78972]
[1680658076406,0.23,1914.4,1913.9,0.78972]
[1680658076817,0.23,1914.4,1913.9,0.26723]
[1680658077021,0.23,1914.4,1913.9,0.78972]
[1680658077219,7.42022,1914.6,1914.0,11.8489609]
[1680658077220,0.002,1914.6,1914.0,11.8489609]
[1680658077506,1.74845637,1915.2,1914.0,11.8489609]
[1680658077507,5.7842,1915.3,1914.1,4.82844]
[1680658077707,5.7842,1915.3,1914.5,0.78348]
[1680658077708,5.7862,1915.3,1914.5,0.78348]
[1680658077933,0.57842,1915.2,1914.5,0.861828]
[1680658078111,0.57842,1915.2,1914.9,0.062]
[1680658078341,0.57842,1915.2,1914.9,0.32309]
[1680658078546,0.057842,1915.1,1914.9,0.062]
[1680658079056,3.11000001,1915.4,1914.9,0.062]
[1680658079254,2.63428255,1915.3,1914.9,0.062]
[1680658079455,3.11200001,1915.4,1914.9,0.062]
[1680658079679,5.63428255,1915.3,1914.9,0.062]
[1680658079859,8.15028255,1915.3,1914.6,0.26114]
[1680658080054,0.56342826,1915.2,1914.5,0.26115]
[1680658080269,3.19771081,1915.2,1914.5,0.26115]
[1680658080460,0.31977108,1915.1,1914.5,0.26115]
[1680658080848,2.95405363,1915.1,1914.6,0.26114]
[1680658081157,2.95405363,1915.1,1914.5,0.26715]
[1680658081364,2.95405363,1915.1,1914.5,0.006]
[1680658081557,2.92968791,1915.0,1914.5,0.006]
[1680658081760,2.92968791,1915.0,1914.5,0.26115]
[1680658082274,0.29540536,1915.0,1914.5,0.26116]
[1680658082479,0.56342826,1915.2,1914.5,0.76116]
[1680658082662,3.19771081,1915.2,1914.5,0.26116]
[1680658083184,2.63428255,1915.2,1914.5,0.26116]
[1680658083405,0.002,1915.3,1914.4,0.02752113]
[1680658083406,8.37828255,1915.1,1914.4,0.02752113]
[1680658083609,8.38028255,1915.1,1914.4,0.006]
[1680658083906,0.83802826,1915.0,1914.4,0.26717]
[1680658084051,2.86428255,1914.9,1914.4,0.26717]
[1680658084486,2.86428255,1914.9,1914.4,0.006]
[1680658085003,3.09928255,1914.9,1914.4,0.006]
[1680658085152,2.86428255,1914.9,1914.3,0.26718]
[1680658085349,0.002,1915.1,1914.4,0.5]
[1680658085672,3.0,1915.1,1914.4,0.26116]
[1680658085953,0.002,1915.2,1914.4,0.81103113]
[1680658086230,3.23496,1915.3,1914.4,0.80503113]
[1680658086427,0.323496,1915.2,1914.4,0.80503113]
[1680658086626,0.558456,1915.2,1914.4,0.80503113]
[1680658086829,2.63428255,1915.1,1914.4,0.23668113]
[1680658087035,3.10525255,1915.1,1914.4,0.21116]
[1680658087234,0.31052526,1915.0,1914.4,0.21116]
[1680658087431,0.31052526,1915.0,1914.1,0.002]
[1680658087634,0.31052526,1915.0,1914.5,1.82806]
[1680658087817,0.006,1915.0,1914.5,2.55336981]
[1680658088141,0.564456,1915.2,1914.5,2.29221981]
[1680658088433,0.24096,1915.2,1914.5,0.26115]
[1680658088639,0.23496,1915.2,1914.5,0.26115]
[1680658088986,3.33916255,1915.2,1914.3,3.0]
[1680658089189,2.63428255,1915.1,1914.2,0.002]
[1680658089483,2.63428255,1915.1,1914.2,0.26119]
[1680658089484,0.235,1914.9,1914.2,0.26119]
[1680658090034,0.235,1914.9,1914.2,0.28271337]
[1680658090234,0.328498,1914.9,1914.2,0.36322671]
[1680658090552,0.798488,1914.9,1914.2,0.36322671]
[1680658090728,0.798488,1914.9,1914.2,0.28271337]
[1680658090934,0.093498,1914.9,1914.4,1.82822]
[1680658091140,0.236,1915.0,1914.4,1.82822]
[1680658091436,0.006,1915.0,1914.4,1.82822]
[1680658091753,0.24098,1915.0,1914.4,0.26117]
[1680658091902,1.10110626,1915.0,1914.3,0.26118]
[1680658092102,1.57107626,1915.0,1914.3,0.26118]
[1680658092451,4.20535881,1915.0,1914.1,0.52243]
[1680658092650,4.20535881,1915.0,1914.1,3.52243]
[1680658092811,4.20535881,1915.0,1914.1,0.2612]
[1680658093017,3.28481843,1914.9,1914.1,0.78363]
[1680658093204,0.23501,1914.8,1914.1,0.78363]
[1680658093405,0.23501,1914.8,1913.9,4.14508619]
[1680658093406,2.63428255,1914.7,1913.9,4.14508619]
[1680658093601,0.47202,1914.8,1914.1,0.26121]
[1680658093947,0.47202,1914.8,1914.1,0.006]
[1680658093948,0.535523,1914.7,1914.1,0.006]
[1680658094152,0.535523,1914.7,1914.0,0.26723]
[1680658094153,3.63984555,1914.7,1914.0,0.26723]
[1680658094338,9.15384555,1914.7,1913.9,0.006]
[1680658094517,0.5,1914.5,1913.7,0.008]
[1680658094719,0.70522,1914.3,1913.5,0.26129]
[1680658094965,3.33950255,1914.3,1913.5,1.083021]
[1680658095108,5.514,1914.1,1913.5,0.006]
[1680658095304,3.09939255,1914.0,1913.3,0.26732]
[1680658095602,0.54506926,1913.9,1913.3,0.26732]
[1680658095806,1.01529926,1913.9,1913.3,0.006]
[1680658096036,3.33964255,1913.9,1913.1,0.52912503]
[1680658096199,0.23515,1913.7,1913.1,0.26735]
[1680658096405,0.70541,1913.8,1913.1,0.26735]
[1680658096599,1.03937926,1913.8,1913.1,0.350556]
[1680658097445,3.67366181,1913.8,1913.1,0.350556]
[1680658097753,0.46514,1913.7,1913.1,0.350556]
[1680658099283,0.23,1913.7,1913.2,0.02153461]
[1680658099437,0.53994226,1913.7,1913.3,0.26132]
[1680658100437,0.30994226,1913.7,1913.3,0.78397]
[1680658100637,1.64612,1913.6,1913.2,0.02153461]
[1680658100898,1.64612,1913.6,1913.0,0.106]
[1680658100899,0.23,1913.5,1913.0,0.106]
[1680658101168,0.46517,1913.5,1913.0,0.106]
[1680658101341,0.23,1913.5,1913.0,0.36736]
[1680658101533,2.63428255,1913.6,1913.0,0.36736]
[1680658101534,0.002,1913.7,1913.0,0.979101]
[1680658101736,0.23513,1913.8,1913.0,0.979101]
[1680658101981,0.23513,1913.9,1913.0,0.979101]
[1680658102192,0.23,1913.8,1913.0,0.979101]
[1680658102494,0.002,1914.0,1913.3,1.82921]
[1680658102795,6.252,1914.2,1913.4,0.182921]
[1680658102989,8.88628255,1914.2,1913.6,1.82896]
[1680658103155,0.2351,1914.1,1913.5,0.02753125]
[1680658103337,0.70529,1914.1,1913.5,0.02153125]
[1680658103543,3.33957255,1914.1,1913.5,0.02153125]
[1680658103788,3.33957255,1914.1,1913.4,0.26177503]
[1680658103789,3.33957255,1914.1,1913.4,0.26731]
[1680658103943,3.8489758,1914.1,1913.4,0.28884237]
[1680658104283,3.8489758,1914.1,1913.4,0.81146237]
[1680658104284,3.6138758,1914.1,1913.4,0.81146237]
[1680658104740,0.23,1914.0,1913.4,0.81146237]
[1680658106255,3.6138758,1914.1,1913.4,0.81146237]
[1680658106456,0.002,1914.2,1913.6,1.82892]
[1680658106692,0.23,1914.3,1913.6,1.83492]
[1680658106992,2.63428255,1914.2,1913.6,1.83492]
[1680658107346,0.23,1914.1,1913.6,1.83492]
[1680658107745,2.63428255,1914.2,1913.6,1.83492]
[1680658107941,2.63428255,1914.2,1913.7,0.183492]
[1680658108176,0.002,1914.3,1913.8,1.82876]
[1680658108412,2.86428255,1914.3,1913.8,1.83476]
[1680658108646,6.087,1914.4,1913.8,0.78975]
[1680658108888,6.087,1914.4,1913.8,0.78375]
[1680658108889,3.24298255,1914.3,1913.8,0.78375]
[1680658109046,3.24298255,1914.3,1913.8,0.26125]
[1680658109497,3.24298255,1914.3,1913.8,0.78377]
[1680658110255,3.24298255,1914.3,1913.8,0.26125]
[1680658110458,2.63428255,1914.3,1913.8,0.26125]
[1680658110772,2.63428255,1914.3,1913.8,0.78377]
[1680658110950,2.63428255,1914.3,1913.8,0.78977]
[1680658111150,2.63428255,1914.3,1913.8,0.78377]
[1680658111450,0.002,1914.4,1913.9,0.02152674]
[1680658111692,6.27989846,1914.5,1914.0,0.78367]
[1680658111693,6.1955,1914.5,1914.0,0.78367]
[1680658111895,8.82978255,1914.5,1914.0,0.78367]
[1680658112293,0.002,1914.5,1914.0,0.78367]
[1680658112614,9.962,1914.6,1914.1,0.0215245]
[1680658112816,9.962,1914.6,1914.2,1.82837]
[1680658113115,9.962,1914.6,1914.2,1.83437]
[1680658113974,0.002,1914.6,1914.2,1.83437]
[1680658114157,6.0095,1915.0,1914.5,0.78348]
[1680658114360,2.63428255,1914.9,1914.5,0.78348]
[1680658115266,0.002,1915.0,1914.5,0.78348]
[1680658115575,0.002,1915.1,1914.5,0.78348]
[1680658115781,6.2805,1915.2,1914.7,0.78337]
[1680658116004,0.002,1915.2,1914.7,0.78337]
[1680658116180,0.11400001,1915.4,1914.7,0.78337]
[1680658116181,0.11000001,1915.4,1914.7,0.78337]
[1680658116381,0.11000001,1915.4,1914.9,0.26109]
[1680658116601,0.24493001,1915.4,1914.8,0.26111]
[1680658116763,0.01000001,1915.4,1914.8,0.26111]
[1680658116967,0.07125103,1915.4,1914.8,0.26111]
[1680658117169,0.01000001,1915.4,1914.8,0.26111]
[1680658117477,0.01000001,1915.4,1914.8,0.78335]
[1680658119070,0.24000001,1915.4,1914.8,0.78335]
[1680658119270,0.01000001,1915.4,1914.8,0.78335]
[1680658121087,0.01000001,1915.4,1914.9,0.2611]
[1680658121530,1.64468,1915.3,1914.8,0.10720178]
[1680658121695,3.33914255,1915.3,1914.7,0.02751775]
[1680658121896,2.86428255,1915.2,1914.7,0.7894]
[1680658122591,8.37828255,1915.2,1914.7,0.006]
[1680658122786,0.83782826,1915.1,1914.7,0.26113]
[1680658123025,0.83782826,1915.1,1914.7,0.7834]
[1680658123213,0.232,1915.2,1914.7,0.7834]
[1680658123214,0.23,1915.2,1914.7,0.7834]
[1680658123425,6.2028,1915.3,1914.7,0.7834]
[1680658124604,0.002,1915.3,1914.7,0.7834]
[1680658124805,2.63428255,1915.3,1914.7,0.7834]
[1680658125149,2.86428255,1915.3,1914.7,0.7834]
[1680658125308,0.28642826,1915.2,1914.7,0.7834]
[1680658125511,0.28642826,1915.2,1914.6,0.006]
[1680658125705,0.28642826,1915.2,1914.5,0.006]
[1680658125939,0.23499,1915.0,1914.5,0.006]
[1680658126237,0.070495,1915.0,1914.5,0.78947]
[1680658126442,0.78642826,1915.2,1914.5,0.78947]
[1680658126625,0.78642826,1915.2,1914.5,0.006]
[1680658126626,0.23,1915.1,1914.5,0.006]
[1680658126828,0.5,1915.0,1914.5,0.006]
[1680658127025,0.23497,1915.1,1914.5,0.78348]
[1680658127337,4.93676001,1915.4,1914.6,0.078348]
[1680658127338,2.174,1915.0,1914.6,0.078348]
[1680658127640,2.174,1915.0,1914.6,0.345498]
[1680658128242,2.174,1915.0,1914.6,0.78345]
[1680658128531,2.174,1915.0,1914.6,4.44556]
[1680658128740,2.174,1915.0,1914.6,4.46707887]
[1680658129092,2.174,1915.0,1914.7,3.0]
[1680658129335,2.174,1915.0,1914.8,0.78336]
[1680658129639,2.174,1915.0,1914.8,0.26712]
[1680658130007,2.174,1915.0,1914.8,0.26112]
[1680658130210,2.174,1915.0,1914.6,1.07211887]
[1680658130523,2.174,1915.0,1914.7,0.7834]
[1680658130697,2.174,1915.0,1914.7,0.7894]
[1680658131930,2.174,1915.0,1914.7,0.7834]
[1680658132132,2.183,1915.1,1914.7,0.97095189]
[1680658132331,0.002,1915.3,1914.7,0.97095189]
[1680658132332,2.176,1915.3,1914.7,0.97495189]
[1680658132551,2.174,1915.3,1914.7,3.97495189]
[1680658132853,2.174,1915.3,1914.8,0.39749519]
[1680658133038,2.174,1915.3,1914.9,0.7833]
[1680658133225,2.174,1915.3,1914.9,0.7893]
[1680658133427,2.174,1915.3,1914.9,0.7833]
[1680658133953,2.164,1915.0,1914.8,0.006]
[1680658134261,2.164,1915.0,1914.8,0.52824]
[1680658134262,2.41,1914.9,1914.8,0.52824]
[1680658134429,2.13,1914.9,1914.7,0.78339]
[1680658134629,2.13,1914.9,1914.7,0.26112]
[1680658134830,2.13,1914.9,1914.4,3.008]
[1680658135148,2.13,1914.9,1914.3,0.008]
[1680658135149,2.164,1914.7,1914.3,0.008]
[1680658135349,0.23,1914.6,1914.3,0.26118]
[1680658135664,0.4694,1914.6,1914.1,0.2612]
[1680658135835,0.4694,1914.6,1914.1,0.78363]
[1680658136036,0.4694,1914.6,1914.1,0.2612]
[1680658136827,0.4694,1914.6,1914.1,0.26121]
[1680658137456,2.174,1914.3,1913.9,0.34126614]
[1680658137680,2.174,1914.3,1913.9,0.208852]
[1680658137824,5.04335255,1914.3,1913.9,0.208852]
[1680658138023,2.183,1914.1,1913.9,0.208852]
[1680658138367,2.41809,1914.1,1913.9,0.208852]
[1680658138579,2.415809,1914.0,1913.9,0.208852]
[1680658138981,2.645809,1914.0,1913.9,0.208852]
[1680658139477,2.880909,1914.0,1913.9,0.208852]
[1680658140041,3.351119,1914.0,1913.9,0.208852]
[1680658140981,5.98540155,1914.0,1913.9,0.208852]
[1680658141213,5.98740155,1914.0,1913.9,0.208852]
[1680658142001,11.50140155,1914.0,1913.9,0.208852]
[1680658143975,11.50540155,1914.0,1913.9,5.2e-05]
[1680658144210,11.50540155,1914.0,1913.2,0.106]
[1680658144211,0.5,1913.9,1913.2,0.106]
[1680658144371,2.183,1913.5,1913.2,0.1]
[1680658147887,2.183,1913.5,1913.2,0.36134]
[1680658148210,2.176,1913.7,1913.3,0.02153349]
[1680658148419,5.7332,1913.8,1913.4,0.78393]
[1680658148420,0.002,1913.8,1913.4,0.78393]
[1680658148584,2.183,1913.9,1913.4,0.78393]
[1680658148787,4.81728255,1913.9,1913.4,0.78393]
[1680658149125,4.81728255,1913.9,1913.4,1.82918]
[1680658149271,4.81728255,1913.9,1913.4,2.01425135]
[1680658149468,4.81728255,1913.9,1913.4,2.02025135]
[1680658150468,4.82328255,1913.9,1913.4,2.01425135]
[1680658151371,4.82328255,1913.9,1913.4,4.62739135]
[1680658151800,7.693,1913.7,1913.4,0.78393]
[1680658152005,7.693,1913.7,1913.2,0.106]
[1680658152006,2.174,1913.5,1913.2,0.1]
[1680658152995,2.40917,1913.5,1913.2,0.1]
[1680658153220,2.93731526,1913.5,1913.2,0.1]
[1680658153527,7.693,1913.3,1913.2,0.1]
[1680658153823,11.26486255,1913.3,1913.2,0.1]
[1680658153994,11.27086255,1913.3,1913.2,0.1]
[1680658154724,11.26486255,1913.3,1913.2,0.05]
[1680658154870,15.48602681,1913.3,1913.2,0.05]
[1680658155317,0.5,1913.2,1913.0,0.1]
[1680658155520,14.55102255,1913.1,1913.0,0.1]
[1680658155726,16.05812481,1913.1,1913.0,0.1]
[1680658156222,0.5,1913.0,1912.8,0.1]
[1680658156522,12.20497255,1912.9,1912.8,0.05]
[1680658156727,13.47746981,1912.9,1912.8,0.05]
[1680658157083,16.47746981,1912.9,1912.8,0.05]
[1680658159905,19.62946981,1912.9,1912.8,0.05]
[1680658161623,9.166,1912.8,1912.7,0.1]
[1680658161820,19.08098953,1912.8,1912.7,0.1]
[1680658162411,15.42898953,1912.8,1912.7,0.1]
[1680658162611,15.19898953,1912.8,1912.7,0.1]
[1680658163014,0.002,1912.8,1912.7,0.1]
[1680658163217,8.38353255,1912.8,1912.7,0.1]
[1680658163426,2.63628255,1912.8,1912.7,0.1]
[1680658163655,2.63428255,1912.8,1912.7,0.1]
[1680658164305,8.14828255,1912.8,1912.7,0.1]
[1680658164528,8.98883481,1912.8,1912.7,0.1]
[1680658164724,3.70483481,1912.8,1912.7,0.1]
[1680658164925,2.86428255,1912.8,1912.7,0.1]
[1680658165129,3.57004255,1912.8,1912.7,0.1]
[1680658165314,12.37763255,1912.8,1912.7,0.1]
[1680658165502,0.5,1912.7,1912.1,0.41808]
[1680658165840,7.9133,1912.5,1912.1,0.41808]
[1680658166054,2.63428255,1912.4,1912.1,0.41808]
[1680658166347,0.23,1912.3,1912.1,0.41808]
[1680658166512,2.63428255,1912.2,1912.1,0.41808]
[1680658166717,0.23,1912.2,1912.1,0.41808]
[1680658167513,5.514,1912.4,1912.1,0.41808]
[1680658167514,0.23,1912.3,1912.1,0.67957]
[1680658167713,2.86428255,1912.3,1912.1,0.67957]
[1680658168720,0.23,1912.3,1912.1,1.20255]
[1680658169045,0.002,1912.5,1912.1,1.20255]
[1680658169247,9.27366326,1912.7,1912.1,1.20255]
[1680658169566,2.63428255,1912.6,1912.1,1.20255]
[1680658172183,2.63428255,1912.6,1912.1,1.20255]
[1680658172345,2.63428255,1912.6,1912.1,0.78447]
[1680658172767,0.002,1912.7,1912.1,0.78447]
[1680658172936,2.86428255,1912.7,1912.2,0.078447]
[1680658173141,2.86428255,1912.7,1912.3,0.26145]
[1680658173459,2.86428255,1912.7,1912.3,0.78438]
[1680658174976,2.86428255,1912.7,1912.3,0.26145]
[1680658175150,4.6594108,1912.7,1912.3,0.26145]
[1680658175677,4.6594108,1912.7,1912.3,0.78438]
[1680658175678,2.02512825,1912.7,1912.3,0.78438]
[1680658175978,0.23,1912.7,1912.3,0.78438]
[1680658176330,0.23,1912.8,1912.3,0.78438]
[1680658176626,2.86428255,1912.8,1912.3,0.78438]
[1680658177216,4.29220081,1912.8,1912.3,0.26145]
[1680658177515,8.14828255,1912.7,1912.2,0.26146]
[1680658177700,1.04482825,1912.6,1912.2,0.26146]
[1680658177905,3.6791108,1912.6,1912.2,0.26146]
[1680658179547,5.8531108,1912.6,1912.1,0.28302701]
[1680658179703,6.1165308,1912.6,1912.1,0.02154701]
[1680658180057,10.32855563,1912.5,1912.0,0.1]
[1680658180251,0.23,1912.4,1912.0,0.1]
[1680658180544,0.5,1912.3,1912.0,0.63853225]
[1680658180745,0.23,1912.2,1912.0,0.63853225]
[1680658180891,0.23,1912.2,1912.0,0.64453225]
[1680658181400,0.23,1912.2,1912.0,0.63853225]
[1680658182408,0.23,1912.2,1912.0,0.90003225]
[1680658182633,0.23,1912.2,1912.0,1.42304225]
[1680658182925,0.002,1912.4,1912.1,0.53853225]
[1680658183125,2.183,1912.6,1912.2,0.26147]
[1680658183432,2.63428255,1912.6,1912.2,0.82154813]
[1680658183641,2.63428255,1912.6,1912.2,1.34449813]
[1680658184111,2.63428255,1912.6,1912.2,2.15394432]
[1680658184644,2.63428255,1912.6,1912.3,0.79998225]
[1680658184796,0.23,1912.5,1912.3,0.79998225]
[1680658184996,0.23,1912.5,1912.3,0.53853225]
[1680658185298,0.23,1912.5,1912.3,0.26146]